bitfinex-derivatives/quotes_ETHF0:USTF0_20250905
["timestamp","ask_amount","ask_price","bid_price","bid_amount"]
[1757074508342,0.5331,4421.0,4420.9,0.4016]
[1757074508832,0.8325,4421.0,4420.9,0.4016]
[1757074509138,0.8325,4421.0,4420.9,0.7043]
[1757074510142,0.8325,4421.0,4420.9,0.4016]
[1757074514051,0.8325,4421.0,4420.9,0.2087]
[1757074515342,0.8325,4421.0,4420.9,41.0087]
[1757074515847,0.8325,4421.0,4420.9,41.3114]
[1757074516052,0.6291,4421.0,4420.9,44.5192]
[1757074516350,0.7103,4421.4,4421.3,0.4016]
[1757074516850,0.7103,4421.4,4421.3,0.2087]
[1757074517145,0.7103,4421.4,4421.1,0.4071]
[1757074517349,0.2075,4421.7,4421.6,0.80865]
[1757074517547,0.2075,4421.7,4421.6,1.11106]
[1757074517748,0.2994,4421.7,4421.6,0.704]
[1757074518550,0.2994,4421.7,4421.6,41.91106]
[1757074518949,0.2994,4421.7,4421.6,42.14006]
[1757074520142,0.2994,4421.7,4421.6,41.733]
[1757074522757,0.2994,4421.7,4421.6,42.14006]
[1757074523052,0.2994,4421.7,4421.6,41.733]
[1757074523654,0.2994,4421.7,4421.6,42.14006]
[1757074523852,0.2994,4421.7,4421.6,41.733]
[1757074524256,0.2994,4421.7,4421.6,42.14006]
[1757074524948,0.1196,4422.0,4421.6,42.14006]
[1757074525149,0.3147,4422.0,4421.9,0.4101]
[1757074525355,0.3147,4422.0,4421.9,0.9416]
[1757074525750,0.6035,4422.0,4421.9,41.7416]
[1757074526256,0.4839,4422.0,4421.9,41.7416]
[1757074526450,0.2888,4422.0,4421.9,41.7416]
[1757074528460,0.5209,4422.5,4422.4,0.4101]
[1757074528961,0.5209,4422.5,4422.4,0.7126]
[1757074529260,0.8097,4422.5,4422.4,0.7126]
[1757074530862,0.8097,4422.5,4422.4,0.4101]
[1757074531958,0.8097,4422.5,4422.3,3.2078]
[1757074532166,0.4839,4422.4,4422.3,4.1494]
[1757074532353,0.6901,4422.4,4422.3,4.1494]
[1757074533059,0.2888,4422.4,4422.3,4.1494]
[1757074533260,0.1196,4423.0,4422.8,0.5125]
[1757074533261,0.4839,4422.9,4422.8,0.5125]
[1757074533563,0.4839,4423.2,4423.1,0.7126]
[1757074533758,0.4839,4423.2,4423.1,0.9416]
[1757074534161,0.4839,4423.2,4423.1,41.7416]
[1757074534361,0.4839,4423.2,4423.1,42.14852]
[1757074535371,0.2888,4423.2,4423.1,42.14852]
[1757074538068,0.3283,4423.5,4423.4,0.5026]
[1757074538263,0.5234,4423.5,4423.4,0.9416]
[1757074538467,0.8122,4423.5,4423.4,0.9416]
[1757074539371,0.3172,4424.0,4423.9,0.4101]
[1757074539577,0.3172,4424.0,4423.9,1.11945]
[1757074539870,0.606,4424.0,4423.9,0.7126]
[1757074541065,0.8122,4424.0,4423.9,0.4101]
[1757074541472,0.8122,4424.0,4423.9,0.7126]
[1757074541669,0.8122,4424.0,4423.9,0.4101]
[1757074542068,0.8122,4424.0,4423.9,0.7126]
[1757074542469,0.8122,4424.0,4423.9,0.4101]
[1757074542771,0.81302074,4423.5,4423.4,0.229]
[1757074543274,0.81302074,4423.5,4423.4,0.4291]
[1757074543475,0.28962074,4423.5,4423.4,1.04599]
[1757074543669,0.00082074,4423.5,4423.4,1.34849]
[1757074544069,0.28962074,4423.5,4423.4,1.11949]
[1757074544270,0.28962074,4423.5,4423.4,1.34849]
[1757074546180,0.28962074,4423.5,4423.4,1.11949]
[1757074546477,0.28962074,4423.5,4423.4,1.34849]
[1757074547079,0.00082074,4423.5,4423.4,1.34849]
[1757074548279,0.29042074,4423.5,4423.4,1.34849]
[1757074550384,0.00082074,4423.5,4423.4,1.34849]
[1757074553891,0.29042074,4423.5,4423.4,1.34849]
[1757074556589,3.3299,4424.5,4423.8,1.01713]
[1757074556792,3.3299,4424.5,4423.9,0.4298]
[1757074556793,0.8242,4424.0,4423.9,0.4298]
[1757074556979,0.8242,4424.0,4423.9,0.2008]
[1757074557187,0.8242,4424.0,4423.9,41.63665]
[1757074559496,0.8242,4424.0,4423.9,40.8]
[1757074559794,0.8242,4424.0,4423.9,41.49855]
[1757074560287,3.7085,4424.5,4424.4,0.6926]
[1757074560596,3.7085,4424.5,4424.4,0.4009]
[1757074560597,4.032,4424.5,4424.4,0.4009]
[1757074561989,3.3299,4425.0,4424.9,0.4009]
[1757074562183,3.8306,4425.0,4424.9,0.6926]
[1757074562387,3.8306,4425.0,4424.9,41.4926]
[1757074563191,0.2896,4425.0,4424.9,41.4926]
[1757074563390,0.5007,4425.4,4425.3,0.6926]
[1757074564392,3.2078,4425.7,4425.5,0.6926]
[1757074564586,3.4974,4425.7,4425.6,0.9216]
[1757074564789,0.2896,4425.7,4425.6,0.9216]
[1757074564989,0.2896,4425.7,4425.6,41.7216]
[1757074565394,0.2896,4425.7,4425.6,41.029]
[1757074565697,0.4178,4425.2,4425.1,0.4298]
[1757074565900,0.7074,4425.2,4425.1,0.4298]
[1757074566096,0.7074,4425.2,4425.1,0.6299]
[1757074566293,0.7074,4425.2,4425.1,41.0008]
[1757074566489,0.1168,4425.0,4424.7,3.4368]
[1757074566690,0.7074,4424.3,4424.2,0.4009]
[1757074566997,0.7074,4424.3,4424.2,0.4298]
[1757074567198,0.1168,4424.0,4423.9,0.2008]
[1757074567392,0.5346,4424.0,4423.9,0.6299]
[1757074567900,0.8242,4424.0,4423.9,0.6299]
[1757074568199,0.6175,4424.0,4423.9,0.9216]
[1757074568401,0.5007,4424.4,4424.3,0.6926]
[1757074568701,0.2896,4424.6,4424.5,0.6926]
[1757074568902,0.2896,4424.6,4424.5,0.9216]
[1757074569798,3.2078,4425.7,4425.0,0.2917]
[1757074569993,0.5346,4425.5,4425.4,0.4009]
[1757074570200,0.5346,4425.5,4425.4,0.2008]
[1757074570503,0.8242,4425.5,4425.4,0.2008]
[1757074570998,0.8242,4425.5,4424.9,0.229]
[1757074571200,0.8242,4425.0,4424.9,0.6299]
[1757074571796,0.8242,4425.0,4424.9,41.4299]
[1757074572102,0.8242,4425.0,4424.9,41.2298]
[1757074572999,0.8242,4425.0,4424.9,0.4298]
[1757074574803,0.8242,4425.0,4424.9,0.229]
[1757074575398,0.8242,4425.0,4424.8,40.8]
[1757074575598,0.1168,4424.5,4424.4,0.2008]
[1757074575801,0.5346,4424.5,4424.4,0.4009]
[1757074575998,0.5346,4424.5,4424.4,41.2009]
[1757074576197,0.6175,4424.5,4424.4,41.4926]
[1757074576398,0.5007,4424.5,4424.4,41.4926]
[1757074576804,0.5007,4424.5,4424.4,41.7216]
[1757074577000,0.6175,4424.5,4424.4,41.4299]
[1757074577204,0.8242,4424.5,4424.4,0.4298]
[1757074577911,0.8242,4424.5,4424.4,0.229]
[1757074578704,0.8242,4424.5,4424.4,0.4298]
[1757074580409,0.8242,4424.5,4424.4,0.229]
[1757074584211,0.5007,4424.5,4424.4,0.9353]
[1757074584413,0.8143,4424.5,4424.4,0.6471]
[1757074584613,0.4046,4424.3,4424.2,0.229]
[1757074584809,0.6939,4424.3,4424.2,41.029]
[1757074585615,0.6939,4424.3,4424.2,41.3172]
[1757074585908,3.2078,4424.7,4424.2,41.3172]
[1757074586111,3.4971,4424.7,4424.4,0.4181]
[1757074586313,3.2078,4424.7,4424.5,0.2882]
[1757074586512,3.4193,4424.7,4424.6,0.7063]
[1757074587111,3.7086,4424.7,4424.6,0.7063]
[1757074587313,3.9017,4424.7,4424.6,0.7063]
[1757074587513,0.6939,4424.7,4424.6,0.7063]
[1757074588116,0.6939,4424.7,4424.6,0.4181]
[1757074588615,0.5008,4424.7,4424.6,0.7063]
[1757074588802,0.5008,4424.7,4424.6,0.9353]
[1757074589007,0.2893,4424.7,4424.6,0.9353]
[1757074589207,0.5008,4424.7,4424.6,0.9353]
[1757074589710,0.2893,4424.7,4424.6,0.9353]
[1757074589911,0.2893,4424.9,4424.8,0.7063]
[1757074590116,0.2893,4424.9,4424.8,0.9353]
[1757074590415,0.5008,4424.9,4424.8,0.9353]
[1757074593515,0.3283,4425.5,4425.4,0.4181]
[1757074593719,0.3283,4425.5,4425.4,0.7063]
[1757074594116,0.6176,4425.5,4425.4,0.7063]
[1757074594816,0.5008,4425.5,4425.4,0.7063]
[1757074595615,0.5008,4425.9,4425.8,0.7063]
[1757074596115,0.5008,4425.9,4425.8,41.5063]
[1757074596511,0.2893,4425.9,4425.8,41.5063]
[1757074597218,0.2893,4426.3,4425.9,0.2882]
[1757074597420,4.94669487,4427.0,4426.1,0.7063]
[1757074597421,0.5008,4426.2,4426.1,0.7063]
[1757074597620,5.17569487,4427.0,4426.0,0.63566]
[1757074597621,1.21401291,4426.5,4426.4,1.11293]
[1757074597813,2.02841291,4426.5,4426.4,0.4181]
[1757074598014,2.02841291,4426.5,4426.4,0.6471]
[1757074598215,2.02841291,4426.5,4426.4,41.4471]
[1757074599131,2.02841291,4426.5,4426.4,41.7353]
[1757074599521,2.02841291,4426.5,4426.4,41.5063]
[1757074599722,2.02841291,4426.5,4426.4,41.2368]
[1757074600323,0.8144,4426.5,4426.4,41.2368]
[1757074600823,0.6213,4426.5,4426.4,41.525]
[1757074601017,3.3283,4428.0,4427.9,0.4181]
[1757074601219,0.2893,4428.4,4427.9,0.9353]
[1757074601527,0.6939,4427.9,4427.8,0.23]
[1757074601816,0.6939,4427.9,4427.8,0.4378]
[1757074602017,4.54231291,4429.0,4428.8,0.4181]
[1757074602220,0.1205,4430.0,4428.8,44.0078]
[1757074602413,0.2893,4429.9,4429.4,3.2078]
[1757074602619,0.332,4430.0,4428.8,40.8]
[1757074602620,0.5008,4428.9,4428.8,44.0078]
[1757074602818,0.5008,4428.9,4428.8,40.8]
[1757074603421,0.6213,4428.0,4427.9,3.2078]
[1757074603827,0.8144,4428.0,4427.9,44.0078]
[1757074604526,0.8144,4428.0,4427.9,3.2078]
[1757074604918,0.4098,4428.5,4427.9,3.84528]
[1757074605123,0.1205,4428.0,4427.9,3.4388]
[1757074605429,0.4098,4428.0,4427.9,3.4388]
[1757074605621,0.2893,4428.0,4427.9,3.4388]
[1757074605819,0.332,4428.5,4427.9,3.4388]
[1757074606114,0.6213,4428.5,4427.9,3.84528]
[1757074606321,0.1205,4429.0,4427.9,3.84528]
[1757074606322,0.2893,4428.9,4428.0,0.22583]
[1757074606629,0.5008,4428.9,4428.1,0.231]
[1757074609227,0.4989,4428.8,4428.1,0.231]
[1757074609422,0.288,4428.7,4428.3,0.40645]
[1757074609623,0.288,4428.8,4428.4,0.231]
[1757074609823,0.1205,4429.0,4428.4,0.231]
[1757074610023,0.2109,4428.8,4428.4,0.231]
[1757074610225,0.1205,4429.0,4428.4,0.231]
[1757074610433,0.1187,4428.5,4428.4,3.4388]
[1757074610622,0.288,4428.7,4428.5,0.40644]
[1757074611020,0.4085,4429.0,4428.7,0.40641]
[1757074611226,0.7098,4428.9,4428.8,0.231]
[1757074613234,0.8285,4428.5,4428.4,0.231]
[1757074613423,0.5405,4428.0,4427.9,0.231]
[1757074613627,0.8285,4428.0,4427.9,0.231]
[1757074614538,0.1187,4428.5,4428.3,0.40645]
[1757074614832,0.4067,4428.5,4428.4,3.4388]
[1757074615031,0.6176,4428.5,4428.4,3.4388]
[1757074615229,0.8285,4428.5,4428.4,0.231]
[1757074615435,0.8285,4428.0,4427.9,3.61429]
[1757074615634,0.8285,4428.0,4427.9,3.84529]
[1757074616131,0.1187,4428.0,4427.9,3.84529]
[1757074616533,0.4067,4428.0,4427.9,3.84529]
[1757074616731,0.6176,4428.0,4427.9,3.84529]
[1757074617036,0.8285,4428.0,4427.9,3.4388]
[1757074621033,0.6176,4428.0,4427.9,3.4388]
[1757074621334,0.3296,4427.5,4427.4,3.2078]
[1757074621541,0.6176,4427.5,4427.4,3.4388]
[1757074622848,0.288,4427.9,4427.6,0.40651]
[1757074623040,0.288,4427.9,4427.7,0.231]
[1757074623240,0.288,4427.9,4427.7,0.63751]
[1757074623747,0.288,4427.9,4427.7,0.231]
[1757074623948,0.288,4427.8,4427.7,0.231]
[1757074624451,0.4989,4427.8,4427.7,0.231]
[1757074624648,0.4989,4427.8,4427.7,0.63751]
[1757074625449,0.288,4427.8,4427.7,0.63751]
[1757074627244,0.288,4428.2,4427.8,1.01626]
[1757074627443,0.288,4428.2,4428.1,0.40647]
[1757074627746,0.288,4428.2,4428.1,0.63747]
[1757074629143,0.288,4428.2,4428.1,0.91882363]
[1757074631239,0.4067,4428.5,4428.4,0.40644]
[1757074631444,0.4067,4428.5,4428.4,0.91879363]
[1757074631751,0.288,4428.9,4428.7,0.40641]
[1757074631950,0.7098,4428.9,4428.8,0.28135363]
[1757074635952,0.7098,4427.8,4427.2,3.4894]
[1757074636155,0.4067,4427.5,4427.4,0.2025]
[1757074636349,0.8285,4427.5,4427.4,0.3933]
[1757074636555,0.8285,4427.5,4427.4,0.6243]
[1757074636848,0.8285,4427.5,4427.4,0.2025]
[1757074637549,0.4607,4427.5,4427.4,0.9122]
[1757074637942,0.2109,4427.5,4427.4,0.9122]
[1757074638142,3.2078,4428.4,4428.3,0.6882]
[1757074638450,0.1947,4428.4,4428.3,0.9192]
[1757074638652,0.3901,4428.4,4428.3,0.9192]
[1757074639456,0.6993,4428.4,4428.3,0.9192]
[1757074640754,0.6993,4428.4,4428.3,0.231]
[1757074641443,0.6993,4428.4,4428.3,0.4298]
[1757074641649,0.6993,4428.4,4428.3,0.9192]
[1757074644157,0.6993,4428.4,4428.3,0.231]
[1757074644361,0.6993,4428.4,4428.3,0.4298]
[1757074644554,0.6993,4428.4,4428.3,0.7268]
[1757074644748,0.6993,4428.4,4428.3,0.9192]
[1757074646161,0.6993,4428.4,4428.3,0.231]
[1757074646760,0.3092,4428.3,4428.0,0.297]
[1757074647060,0.1173,4428.5,4428.2,0.1988]
[1757074647260,0.6993,4428.3,4428.2,0.1988]
[1757074648060,0.6993,4428.3,4427.9,0.297]
[1757074648663,0.6993,4428.3,4427.8,3.8453]
[1757074648859,0.3901,4428.3,4427.9,0.297]
[1757074649060,0.3901,4428.2,4428.1,0.79767]
[1757074649259,0.6993,4428.2,4428.1,0.79767]
[1757074649561,0.6993,4428.2,4428.1,1.09467]
[1757074649860,0.6993,4428.2,4428.1,0.6882]
[1757074650461,0.3901,4428.2,4428.1,1.09467]
[1757074651257,0.1947,4428.5,4428.4,0.1988]
[1757074651466,0.1947,4428.5,4428.4,0.3912]
[1757074651762,0.1947,4428.5,4428.4,0.1988]
[1757074651763,0.8166,4428.5,4428.4,0.1988]
[1757074652455,0.8166,4428.5,4428.4,0.4958]
[1757074652861,0.5074,4428.5,4428.3,3.4388]
[1757074653063,0.6993,4428.4,4428.3,3.4388]
[1757074653256,0.6993,4428.4,4428.3,3.6376]
[1757074653454,0.6993,4428.4,4428.3,3.9346]
[1757074653754,0.6993,4428.4,4428.3,4.127]
[1757074654964,0.6993,4428.4,4428.3,0.4298]
[1757074656165,0.6993,4428.4,4428.3,0.7268]
[1757074656659,0.6993,4428.4,4428.3,1.32565]
[1757074656856,0.1173,4428.5,4428.3,1.32565]
[1757074656857,0.3092,4428.8,4428.3,1.32565]
[1757074657059,0.3901,4428.8,4428.7,0.3912]
[1757074657366,0.6993,4428.8,4428.7,0.6882]
[1757074659864,0.3134,4429.5,4429.4,0.1988]
[1757074660064,0.6993,4429.5,4429.4,0.6882]
[1757074661368,3.2078,4430.1,4429.7,0.6882]
[1757074661369,0.5039,4429.8,4429.7,0.6882]
[1757074662359,3.517,4430.1,4429.7,0.3912]
[1757074662565,3.9071,4430.1,4430.0,0.6882]
[1757074662977,0.6993,4430.1,4430.0,0.6882]
[1757074663271,0.1947,4430.1,4430.0,0.8112]
[1757074663567,0.1947,4429.6,4429.5,0.3218]
[1757074663872,0.6993,4429.6,4429.5,0.6222]
[1757074664275,0.1947,4429.7,4429.6,0.297]
[1757074664465,0.6993,4429.7,4429.6,0.6882]
[1757074666169,0.6993,4429.7,4429.2,3.5048]
[1757074666370,0.8166,4429.0,4428.2,3.2078]
[1757074666670,0.1947,4429.3,4429.1,0.297]
[1757074666972,0.6993,4429.7,4429.2,0.297]
[1757074667167,0.1173,4430.0,4429.0,0.3912]
[1757074667168,0.3901,4429.1,4429.0,0.3912]
[1757074667366,0.6993,4429.1,4429.0,0.6882]
[1757074668976,0.6993,4429.1,4429.0,0.8138]
[1757074668977,0.3901,4429.1,4429.0,0.8138]
[1757074669177,0.1947,4429.1,4429.0,0.8138]
[1757074669779,0.3977,4429.1,4429.0,0.8138]
[1757074669979,0.2973,4429.9,4429.1,0.309]
[1757074671879,0.4133,4430.2,4430.1,0.3962]
[1757074672077,0.7106,4430.2,4430.1,0.6282]
[1757074672285,0.7106,4430.2,4430.1,0.3962]
[1757074672779,0.7106,4430.2,4430.1,0.7052]
[1757074673679,3.2078,4430.7,4430.1,0.7052]
[1757074673890,0.3864,4430.6,4430.5,0.6293]
[1757074674382,0.3864,4430.6,4430.5,0.4346]
[1757074674584,0.3864,4430.6,4430.5,0.309]
[1757074675692,4.61211,4430.6,4430.0,0.4346]
[1757074675984,0.5072,4430.1,4429.6,0.309]
[1757074676178,0.5072,4430.1,4429.7,0.309]
[1757074676381,0.5072,4430.1,4429.6,0.309]
[1757074677386,0.3864,4430.1,4430.0,0.3203]
[1757074677587,0.3864,4430.1,4430.0,0.8308]
[1757074678388,0.1932,4430.6,4430.5,0.6361]
[1757074678589,0.1932,4430.6,4430.5,0.8308]
[1757074678776,0.3864,4430.6,4430.5,0.8308]
[1757074678980,0.5072,4430.6,4430.1,0.309]
[1757074679180,0.3864,4430.6,4430.0,0.1256]
[1757074679388,0.1932,4430.6,4430.5,0.1947]
[1757074679588,0.3864,4430.6,4430.5,0.8308]
[1757074679786,0.3864,4430.6,4430.5,0.6293]
[1757074679987,0.5072,4430.6,4430.5,0.4346]
[1757074680785,0.5072,4430.6,4430.0,0.1256]
[1757074680985,0.3864,4430.6,4430.0,0.1256]
[1757074681191,0.3864,4430.2,4430.1,0.5037]
[1757074681393,0.3864,4430.2,4430.1,0.7052]
[1757074681592,0.1932,4430.2,4430.1,0.7052]
[1757074682089,0.3864,4430.2,4430.1,0.7052]
[1757074682397,0.3864,4430.2,4430.1,0.5037]
[1757074682993,0.5072,4430.2,4430.1,0.5037]
[1757074683493,0.3864,4429.9,4429.8,0.309]
[1757074683692,0.5072,4429.9,4429.8,0.309]
[1757074683893,0.3864,4429.9,4429.8,0.5037]
[1757074685000,0.5072,4429.9,4429.8,0.309]
[1757074685387,0.3864,4429.9,4429.8,0.7052]
[1757074687601,0.3864,4429.9,4429.8,0.5037]
[1757074689401,0.3864,4429.9,4429.8,0.7052]
[1757074689597,0.3864,4429.1,4429.0,0.4346]
[1757074689789,0.3864,4429.1,4429.0,0.8308]
[1757074690394,0.1932,4429.1,4429.0,0.8308]
[1757074690592,0.232,4429.3,4429.2,0.7052]
[1757074691294,3.2078,4429.4,4429.2,0.3962]
[1757074691500,3.2078,4429.9,4429.5,0.1256]
[1757074691702,3.2078,4430.4,4430.0,0.1256]
[1757074691998,3.2078,4430.4,4430.3,0.7052]
[1757074691999,3.401,4430.4,4430.3,0.7052]
[1757074693296,2.5724,4430.4,4430.3,0.7052]
[1757074693495,3.21216179,4431.9,4431.2,0.3962]
[1757074693496,0.7106,4431.3,4431.2,0.3962]
[1757074693801,0.7106,4431.3,4431.2,0.7052]
[1757074694006,0.97383888,4431.3,4431.2,0.7052]
[1757074694195,0.74083888,4431.3,4431.2,0.7052]
[1757074694692,0.97383888,4431.3,4431.2,0.7052]
[1757074694900,0.74083888,4431.3,4431.2,0.7052]
[1757074695105,0.2103,4430.6,4430.5,0.7052]
[1757074695299,0.2973,4430.8,4430.5,0.5218]
[1757074695500,0.233,4431.1,4430.7,0.7052]
[1757074695699,0.5303,4431.1,4430.8,0.309]
[1757074695997,0.2103,4431.1,4431.0,0.7052]
[1757074696198,0.2103,4431.1,4431.0,0.67496112]
[1757074696504,0.7106,4431.1,4431.0,0.36596112]
[1757074697505,0.7106,4431.1,4431.0,0.67496112]
[1757074698005,0.7106,4431.1,4430.6,0.309]
[1757074698199,0.6976,4430.7,4430.6,0.5091]
[1757074698606,0.6976,4430.7,4430.6,0.4051]
[1757074698996,0.6976,4430.7,4430.6,0.7133]
[1757074699704,0.4919,4430.9,4430.8,0.7133]
[1757074703008,0.2953,4431.8,4431.4,0.4051]
[1757074703207,2.0,4431.9,4431.8,0.3082]
[1757074703404,1.5162,4431.9,4431.8,3.9211]
[1757074703606,1.5162,4431.9,4431.8,4.14674]
[1757074703908,0.2953,4431.9,4431.8,3.2078]
[1757074704402,0.2953,4431.9,4431.8,3.4408]
[1757074705609,0.4919,4431.9,4431.8,3.2078]
[1757074705810,0.6976,4431.9,4431.8,3.4408]
[1757074706010,0.6976,4431.9,4431.7,0.233]
[1757074706415,0.2953,4431.8,4431.7,0.233]
[1757074707315,0.6976,4431.8,4431.7,0.233]
[1757074707515,0.2953,4431.7,4431.3,3.2078]
[1757074707813,0.2953,4431.7,4431.4,0.233]
[1757074709015,0.2953,4431.9,4431.4,0.233]
[1757074709517,0.1146,4431.5,4431.4,0.233]
[1757074709714,0.4099,4431.5,4431.4,0.233]
[1757074710211,0.1146,4432.5,4431.4,4.45866]
[1757074710416,0.1146,4432.5,4432.1,3.2078]
[1757074710612,0.2953,4432.4,4432.2,0.232]
[1757074711322,0.6065,4433.0,4432.2,0.232]
[1757074711507,0.2953,4432.9,4432.1,3.2078]
[1757074711712,0.1146,4432.5,4432.1,3.2078]
[1757074711918,0.2953,4432.4,4432.2,0.232]
[1757074712315,0.2953,4432.8,4432.3,4.0]
[1757074712512,0.2953,4432.8,4432.7,3.2078]
[1757074712713,0.1146,4433.0,4432.7,3.4398]
[1757074713020,0.22,4432.9,4432.7,3.4398]
[1757074713216,0.87680345,4434.4,4432.7,3.4398]
[1757074713217,2.18838107,4432.8,4432.7,3.4398]
[1757074713415,2.18838107,4432.8,4432.7,7.4398]
[1757074713622,2.18838107,4432.8,4432.7,3.4408]
[1757074714316,2.18838107,4432.8,4432.7,7.66639]
[1757074714726,2.18838107,4432.8,4432.7,7.4408]
[1757074715021,3.93560345,4434.4,4433.9,0.7004]
[1757074715316,4.33790345,4434.4,4434.3,0.2001]
[1757074715617,4.33790345,4434.4,4433.4,3.2078]
[1757074715822,4.33790345,4434.4,4432.2,0.5283]
[1757074715823,3.7247,4433.5,4432.2,0.5283]
[1757074716023,3.7247,4433.5,4432.2,0.4331]
[1757074716024,0.4023,4432.3,4432.2,0.4331]
[1757074716220,0.1146,4432.5,4432.1,3.2078]
[1757074717019,0.2953,4432.5,4432.3,0.2953]
[1757074717521,0.2953,4432.4,4432.2,0.234]
[1757074718718,0.2953,4432.4,4431.0,0.50459]
[1757074718719,0.1146,4431.5,4431.4,0.234]
[1757074718922,0.4099,4431.5,4431.4,0.234]
[1757074719224,0.1146,4431.5,4431.1,3.2078]
[1757074719822,0.2953,4431.4,4431.1,3.2078]
[1757074720024,0.1146,4431.5,4431.1,3.2078]
[1757074720326,0.1146,4431.5,4431.1,3.5031]
[1757074720524,0.2953,4431.4,4431.1,3.2078]
[1757074720925,0.1146,4431.5,4431.1,3.2078]
[1757074721224,0.2953,4431.2,4430.6,3.4418]
[1757074722728,0.2953,4430.9,4430.6,3.4418]
[1757074722930,0.1146,4431.0,4430.6,3.4418]
[1757074723126,0.2953,4430.9,4430.6,3.4418]
[1757074723628,0.1146,4431.0,4430.6,3.4418]
[1757074723829,0.2953,4430.9,4430.6,3.4418]
[1757074724423,0.1146,4431.0,4430.6,3.4418]
[1757074724820,0.4919,4430.7,4430.6,3.6419]
[1757074725028,0.4919,4430.7,4430.6,3.8469]
[1757074725227,0.6976,4430.7,4430.6,3.4418]
[1757074725425,0.4919,4430.3,4430.2,0.6246]
[1757074725728,0.4919,4430.3,4430.2,0.8296]
[1757074725932,0.2953,4430.3,4430.2,1.1249]
[1757074726228,0.4919,4431.8,4431.7,0.2001]
[1757074726533,0.2953,4431.8,4431.6,0.2953]
[1757074727131,0.233,4432.4,4431.5,0.233]
[1757074727328,0.2953,4431.8,4431.0,0.233]
[1757074727833,0.2953,4431.8,4430.8,0.2953]
[1757074728231,0.2878,4431.6,4430.9,0.233]
[1757074728428,0.122,4431.5,4430.9,0.233]
[1757074728629,0.2878,4431.4,4430.9,0.233]
[1757074728830,0.122,4431.5,4430.9,0.233]
[1757074729430,0.2878,4431.4,4430.9,0.233]
[1757074729628,0.122,4431.5,4430.9,0.233]
[1757074729836,0.4823,4431.4,4431.3,0.2028]
[1757074730027,0.6937,4431.4,4431.3,0.2028]
[1757074730227,0.6937,4431.4,4430.9,0.233]
[1757074731030,0.4059,4431.4,4431.3,0.2028]
[1757074731231,0.4059,4431.4,4431.3,0.398]
[1757074731632,0.6937,4431.4,4431.3,0.398]
[1757074732834,0.3165,4431.0,4430.9,0.631]
[1757074733029,0.6043,4431.0,4430.9,0.631]
[1757074734241,0.2878,4431.0,4430.9,0.9212]
[1757074734540,0.8157,4431.0,4430.9,0.631]
[1757074734735,0.8157,4431.0,4430.9,0.233]
[1757074735235,0.2878,4431.4,4430.9,0.9212]
[1757074735442,0.3165,4431.5,4431.4,0.2028]
[1757074735641,0.8157,4431.5,4430.9,0.233]
[1757074735841,0.3165,4431.0,4430.9,0.4358]
[1757074736144,0.6043,4431.0,4430.9,0.631]
[1757074736545,0.8157,4431.0,4430.9,0.631]
[1757074739041,0.8157,4431.0,4430.9,0.233]
[1757074739242,0.8157,4431.0,4430.9,0.4358]
[1757074739932,0.8157,4431.0,4430.9,0.631]
[1757074740140,0.4823,4431.0,4430.9,0.9212]
[1757074741754,0.6043,4431.0,4430.9,0.631]
[1757074742054,0.8157,4431.0,4430.9,0.631]
[1757074742755,0.8157,4431.0,4430.9,0.4358]
[1757074743256,0.6937,4430.3,4430.2,3.6058]
[1757074743553,0.2878,4430.3,4430.2,3.896]
[1757074743849,0.4098,4431.0,4430.4,0.398]
[1757074744056,0.6043,4431.0,4430.9,0.398]
[1757074744250,1.5925,4431.3,4431.2,0.398]
[1757074744454,1.7099,4431.8,4431.7,0.398]
[1757074744644,1.7099,4431.8,4431.7,4.129]
[1757074744849,0.122,4432.5,4431.7,3.8388]
[1757074745048,0.122,4432.5,4431.8,0.2902]
[1757074745253,0.5279,4432.5,4432.4,0.493]
[1757074745453,0.5279,4432.5,4432.4,0.2028]
[1757074745656,0.5279,4432.5,4432.3,0.233]
[1757074746552,0.6937,4432.4,4432.3,0.233]
[1757074746952,0.5279,4432.0,4431.9,0.233]
[1757074747259,0.8157,4432.0,4431.9,0.233]
[1757074747458,0.8157,4432.0,4431.9,0.4358]
[1757074748359,0.8157,4432.0,4431.9,0.726]
[1757074748659,0.8157,4432.0,4431.9,0.9212]
[1757074749349,0.8157,4432.0,4431.9,0.4358]
[1757074750758,0.8157,4432.0,4431.9,0.233]
[1757074751259,0.5279,4432.0,4431.5,0.2902]
[1757074751460,0.6937,4431.7,4431.6,0.726]
[1757074751652,0.6937,4431.7,4431.6,0.9212]
[1757074752057,0.6937,4431.7,4431.6,0.631]
[1757074752761,0.6937,4431.7,4431.6,0.9212]
[1757074753962,0.1945,4431.7,4431.6,0.9212]
[1757074754163,0.2878,4432.4,4431.7,0.2902]
[1757074754351,0.2878,4432.4,4431.7,3.498]
[1757074754552,0.6937,4432.4,4432.3,0.6882]
[1757074755261,0.6937,4432.4,4432.3,0.2028]
[1757074755458,0.122,4432.0,4431.9,0.233]
[1757074755652,0.122,4432.0,4431.7,3.2078]
[1757074755653,0.5279,4432.0,4431.7,3.2078]
[1757074755856,0.6937,4431.9,4431.8,0.233]